bitfinex-derivatives/quotes_ETHF0:USTF0_20250212
["timestamp","ask_amount","ask_price","bid_price","bid_amount"]
[1739327931389,5.97178831,2614.6,2614.5,0.576]
[1739327932284,5.97178831,2614.6,2614.4,40.80573877]
[1739327939598,5.97178831,2614.6,2614.5,0.6103]
[1739327940296,5.97178831,2614.6,2614.4,40.80573877]
[1739327941600,5.97178831,2614.6,2614.4,0.00573877]
[1739327942089,6.73683831,2614.6,2614.4,0.00573877]
[1739327942691,5.97178831,2614.6,2614.4,0.00573877]
[1739327943594,0.06499496,2614.5,2614.4,0.00573877]
[1739327943997,4.1471389,2614.5,2614.4,0.00573877]
[1739327944798,7.1261389,2614.5,2614.4,0.00573877]
[1739327945002,13.1261389,2614.5,2614.4,0.00573877]
[1739327946003,7.1261389,2614.5,2614.4,0.00573877]
[1739327946907,5.8271389,2614.5,2614.4,0.00573877]
[1739327947108,5.76214394,2614.5,2614.4,0.00573877]
[1739327947300,5.82713745,2614.5,2614.4,0.00573877]
[1739327947502,5.76214394,2614.5,2614.4,0.00573877]
[1739327948100,5.76214394,2614.5,2614.4,40.80573877]
[1739327950500,4.08214394,2614.5,2614.4,40.80573877]
[1739327950700,4.08214394,2614.5,2614.4,41.21428346]
[1739327950896,5.66692664,2614.6,2614.4,41.21428346]
[1739327951096,1.68,2614.6,2614.5,0.5733]
[1739327951407,6.08141147,2614.6,2614.5,1.1293]
[1739327951907,6.08141147,2614.6,2614.4,40.80573877]
[1739327952206,0.5811,2614.5,2614.4,0.00573877]
[1739327952502,1.7394,2614.5,2614.4,0.00573877]
[1739327952809,6.06770628,2614.5,2614.4,0.00573877]
[1739327953204,15.11169153,2614.5,2614.4,0.00573877]
[1739327953409,12.13269153,2614.5,2614.4,0.00573877]
[1739327953807,6.13269153,2614.5,2614.4,0.00573877]
[1739327955505,12.13269153,2614.5,2614.4,0.00573877]
[1739327956102,6.13269153,2614.5,2614.4,0.00573877]
[1739327957811,6.13269722,2614.5,2614.4,0.00573877]
[1739327958603,12.13269722,2614.5,2614.4,0.00573877]
[1739327959207,6.13269722,2614.5,2614.4,0.00573877]
[1739327959710,12.13269328,2614.5,2614.4,0.00573877]
[1739327961414,12.13269098,2614.5,2614.4,0.00573877]
[1739327962314,15.34049098,2614.5,2614.4,0.00573877]
[1739327962615,9.34049098,2614.5,2614.4,0.00573877]
[1739327963010,9.27550628,2614.5,2614.4,0.00573877]
[1739327963213,15.34049318,2614.5,2614.4,0.00573877]
[1739327963910,9.34049318,2614.5,2614.4,0.00573877]
[1739327964117,15.34049318,2614.5,2614.4,0.00573877]
[1739327964810,9.34049318,2614.5,2614.4,0.00573877]
[1739327966012,11.02049318,2614.5,2614.4,0.00573877]
[1739327966819,11.02049891,2614.5,2614.4,0.00573877]
[1739327968824,7.60109891,2614.5,2614.4,0.00573877]
[1739327969027,9.21610628,2614.5,2614.4,0.00573877]
[1739327970528,9.28109127,2614.5,2614.4,0.00573877]
[1739327971523,9.83259127,2614.5,2614.4,0.00573877]
[1739327971828,10.59767127,2614.5,2614.4,0.00573877]
[1739327972025,10.59766836,2614.5,2614.4,0.00573877]
[1739327972425,16.59766836,2614.5,2614.4,0.00573877]
[1739327972732,15.83258836,2614.5,2614.4,0.00573877]
[1739327972930,9.83258836,2614.5,2614.4,0.00573877]
[1739327975532,9.83256601,2614.5,2614.4,0.00573877]
[1739327975829,10.59764601,2614.5,2614.4,0.00573877]
[1739327976033,3.14038544,2613.9,2613.7,0.6084]
[1739327976230,1.68,2613.8,2613.7,0.6084]
[1739327976434,5.72421822,2613.8,2613.7,0.6084]
[1739327977034,5.72421822,2613.8,2613.7,1.01739239]
[1739327977237,5.72421822,2613.8,2613.7,1.60249239]
[1739327977534,5.72421822,2613.8,2613.7,1.1935]
[1739327979626,5.72421822,2613.8,2613.7,1.60242647]
[1739327981029,5.72421822,2613.8,2613.7,1.60244771]
[1739327981533,5.72421822,2613.8,2613.7,1.60261359]
[1739327982729,4.04421822,2613.8,2613.7,1.60261359]
[1739327982935,4.04421822,2613.8,2613.7,2.64202575]
[1739327983138,3.2078,2613.9,2613.7,43.44202575]
[1739327983433,1.68,2614.2,2613.8,1.44861312]
[1739327983635,1.68,2614.2,2613.9,4.08466167]
[1739327983826,1.68,2614.2,2614.0,0.87686167]
[1739327984024,1.68,2614.2,2614.1,0.87686167]
[1739327984230,1.68,2614.2,2614.1,0.4091829]
[1739327984626,1.68,2614.2,2614.1,41.78093435]
[1739327985535,1.68,2614.2,2614.1,42.24820247]
[1739327986134,1.68,2614.2,2614.1,41.78066101]
[1739327986335,6.34818544,2614.5,2614.1,41.78066101]
[1739327986634,4.28985176,2614.4,2614.2,2.19660956]
[1739327986836,4.28985176,2614.4,2614.3,0.40890956]
[1739327987738,4.28985176,2614.4,2614.3,0.40884619]
[1739327990234,4.28985176,2614.4,2614.2,1.7877]
[1739327990627,4.28985176,2614.4,2614.3,0.40869013]
[1739327991932,4.28985176,2614.4,2614.3,0.40864098]
[1739327994034,4.28985176,2614.4,2614.2,1.7877]
[1739327995032,4.28985176,2614.4,2614.3,0.40855775]
[1739327999927,4.28985176,2614.4,2614.2,1.7877]
[1739328000129,4.28985176,2614.4,2614.3,0.40842459]
[1739328000334,4.28985176,2614.4,2614.2,1.7877]
[1739328000835,4.28985176,2614.4,2614.2,0.5887]
[1739328001033,4.28985176,2614.4,2614.1,44.0078]
[1739328001241,1.1973,2614.3,2614.1,44.0078]
[1739328001743,4.18571218,2614.2,2614.1,44.0078]
[1739328001940,3.71148544,2614.5,2614.1,44.41620775]
[1739328002141,4.18571218,2614.3,2614.2,0.99531713]
[1739328002341,3.71148544,2614.5,2614.2,0.99531713]
[1739328002543,3.71148544,2614.5,2614.2,0.5869]
[1739328002744,4.1052347,2614.4,2614.2,0.5869]
[1739328004345,4.1052347,2614.4,2614.1,44.0078]
[1739328004541,4.1052347,2614.4,2614.2,0.40844895]
[1739328004846,4.1052347,2614.4,2614.1,44.0078]
[1739328005441,1.1644,2614.3,2614.1,44.0078]
[1739328005743,3.9917452,2614.2,2614.1,44.0078]
[1739328005944,3.9917452,2614.2,2614.1,44.41627825]
[1739328007334,4.27118544,2614.5,2614.1,44.41627825]
[1739328007538,4.27118544,2614.5,2614.2,0.40847825]
[1739328007741,4.27118544,2614.5,2614.1,44.57875589]
[1739328007742,4.17048035,2614.4,2614.1,44.57875589]
[1739328007941,4.17048035,2614.4,2614.2,0.4086139]
[1739328008137,4.17048035,2614.4,2614.3,0.4086139]
[1739328008541,1.679,2614.6,2614.3,0.4086139]
[1739328008740,1.679,2614.6,2614.4,0.4086139]
[1739328008944,1.679,2614.6,2614.5,0.40871028]
[1739328009844,1.679,2614.6,2614.2,0.6038]
[1739328010039,1.679,2614.6,2614.3,0.40882393]
[1739328010244,5.98038544,2614.8,2614.4,0.40882393]
[1739328010443,5.98038544,2614.8,2614.5,0.40882393]
[1739328010444,4.30138544,2614.8,2614.5,0.40882393]
[1739328010747,4.30138544,2614.8,2614.4,0.57143226]
[1739328010748,4.26564214,2614.7,2614.6,0.40893618]
[1739328011544,4.26564214,2614.7,2614.6,6.98055016]
[1739328011749,3.2078,2615.6,2614.8,3.14038544]
[1739328011943,3.2078,2615.6,2615.2,3.2078]
[1739328012138,4.29419812,2615.5,2615.3,41.67643986]
[1739328012344,4.29419812,2615.5,2615.4,0.4088849]
[1739328012942,4.29419812,2615.5,2615.4,41.2088849]
[1739328014042,4.29419812,2615.5,2615.4,41.20817507]
[1739328015450,4.29419812,2615.5,2615.4,40.8]
[1739328015743,4.85129812,2615.5,2615.4,40.8]
[1739328016941,4.85129812,2615.5,2615.2,0.00573877]
[1739328017143,0.5932,2615.4,2615.2,0.00573877]
[1739328017543,4.11363709,2615.3,2615.2,40.80573877]
[1739328020643,3.2078,2615.6,2615.2,40.80573877]
[1739328021043,4.40497243,2615.5,2615.2,40.80573877]
[1739328023152,4.99697243,2615.5,2615.2,40.80573877]
[1739328025948,4.40497243,2615.5,2615.2,40.80573877]
[1739328030759,4.40497243,2615.5,2615.2,44.01353877]
[1739328030954,4.40497243,2615.5,2615.3,0.5696]
[1739328036359,4.40497243,2615.5,2615.4,0.40784997]
[1739328036858,4.40497243,2615.5,2615.4,0.40521564]
[1739328037164,4.40497243,2615.5,2615.2,44.01353877]
[1739328037364,4.37118761,2615.6,2615.2,40.80573877]
[1739328037666,5.98412421,2615.7,2615.2,40.80573877]
[1739328037860,4.13594055,2615.6,2615.2,40.80573877]
[1739328039564,4.13594055,2615.6,2615.3,1.0379685]
[1739328039767,4.13594055,2615.6,2615.4,0.57097362]
[1739328040564,4.13594055,2615.6,2615.2,44.01353877]
[1739328040764,4.13594055,2615.6,2615.3,0.46743068]
[1739328041070,4.13594055,2615.6,2615.2,44.01353877]
[1739328041258,4.13594055,2615.6,2615.3,0.46743118]
[1739328041459,4.13594055,2615.6,2615.4,0.46743118]
[1739328041664,4.13594055,2615.6,2615.2,44.01353877]
[1739328041864,4.13594055,2615.6,2615.3,0.46778616]
[1739328042170,4.13594055,2615.6,2615.4,0.57194492]
[1739328042671,4.13594055,2615.6,2615.2,44.01353877]
[1739328043071,4.13594055,2615.6,2615.3,0.57195418]
[1739328043672,4.13594055,2615.6,2615.2,44.01353877]
[1739328044473,4.13594055,2615.6,2615.3,0.6006]
[1739328044673,4.13594055,2615.6,2615.4,0.5719576]
[1739328045270,4.13594055,2615.6,2615.3,0.6006]
[1739328046573,4.13594055,2615.6,2615.4,0.5719739]
[1739328046970,4.13594055,2615.6,2615.3,1.1776]
[1739328047275,4.13594055,2615.6,2615.3,1.7504]
[1739328047773,0.60113877,2615.7,2615.4,0.46784072]
[1739328047968,0.00573877,2615.7,2615.3,4.89078544]
[1739328048177,0.00573877,2615.7,2615.4,1.03982247]
[1739328048377,0.00573877,2615.7,2615.4,0.57198978]
[1739328048577,0.00573877,2615.7,2615.5,0.57198978]
[1739328049071,0.00573877,2615.7,2615.6,0.40925091]
[1739328049279,0.00573877,2615.7,2615.6,0.98124069]
[1739328049771,0.00573877,2615.7,2615.6,1.44898807]
[1739328050380,0.00573877,2615.7,2615.6,0.98124069]
[1739328051478,7.15237735,2615.7,2615.6,0.98124069]
[1739328051882,7.15237735,2615.7,2615.6,0.98117912]
[1739328052279,7.15237735,2615.7,2615.6,0.98117926]
[1739328053377,7.15237735,2615.7,2615.6,0.40918948]
[1739328053976,7.15237735,2615.7,2615.6,0.40919635]
[1739328055987,7.15237735,2615.7,2615.2,44.01353877]
[1739328056291,7.15237735,2615.7,2615.3,1.44882384]
[1739328056488,7.15237735,2615.7,2615.4,0.8769496]
[1739328056689,7.15237735,2615.7,2615.5,0.40921537]
[1739328056895,7.15237735,2615.7,2615.6,0.40921537]
[1739328057587,4.01199191,2615.7,2615.6,0.40921537]
[1739328059493,4.01199191,2615.7,2615.6,0.40926057]
[1739328060298,4.01199191,2615.7,2615.6,0.40926046]
[1739328060794,4.01199191,2615.7,2615.6,0.40926021]
[1739328060995,4.01199191,2615.7,2615.3,0.5915]
[1739328061191,4.01199191,2615.7,2615.4,0.40926301]
[1739328061397,4.01199191,2615.7,2615.5,0.40926301]
[1739328061599,4.01199191,2615.7,2615.3,0.5915]
[1739328061899,4.01199191,2615.7,2615.4,0.40925662]
[1739328062198,4.01199191,2615.7,2615.5,0.40925662]
[1739328062398,4.01199191,2615.7,2615.6,0.40925662]
[1739328063898,4.01199191,2615.7,2615.6,0.40925935]
[1739328066302,4.01199191,2615.7,2615.6,0.98119218]
[1739328068098,4.01199191,2615.7,2615.6,0.98120872]
[1739328068604,4.01199191,2615.7,2615.6,0.98127866]
[1739328070305,4.01199191,2615.7,2615.6,0.98128164]
[1739328072404,7.91711735,2615.7,2615.2,40.80573877]
[1739328072595,6.34818544,2615.3,2615.2,40.80573877]
[1739328072796,8.02518544,2615.3,2615.2,40.80573877]
[1739328073106,12.10579011,2615.3,2615.2,40.80573877]
[1739328074300,4.08060467,2615.3,2615.2,40.80573877]
[1739328074501,4.8858,2615.6,2615.2,41.27322871]
[1739328074697,4.8858,2615.6,2615.3,1.1605]
[1739328074905,4.8858,2615.6,2615.3,1.7335]
[1739328074906,4.13281901,2615.5,2615.3,1.7335]
[1739328076708,4.13281901,2615.5,2615.3,1.1605]
[1739328076908,0.601,2615.4,2615.3,0.5668]
[1739328077107,0.601,2615.4,2615.3,1.03427453]
[1739328079409,1.2103,2615.4,2615.3,1.03427453]
[1739328080002,4.8858,2615.6,2615.3,0.5668]
[1739328080314,5.23197679,2615.5,2615.3,0.5668]
[1739328080609,5.23197679,2615.5,2615.2,40.80573877]
[1739328084007,3.14038544,2615.4,2615.2,40.80573877]
[1739328084209,0.5809,2615.3,2615.2,40.80573877]
[1739328084510,4.75037474,2615.3,2615.2,40.80573877]
[1739328084811,4.75037474,2615.3,2615.2,0.00573877]
[1739328098427,4.8153514,2615.3,2615.2,0.00573877]
[1739328098727,4.75037474,2615.3,2615.2,0.00573877]
[1739328099230,4.81535522,2615.3,2615.2,0.00573877]
[1739328099626,4.75037474,2615.3,2615.2,0.00573877]
[1739328099827,4.81535572,2615.3,2615.2,0.00573877]
[1739328100028,4.81535577,2615.3,2615.2,0.00573877]
[1739328101023,4.81535597,2615.3,2615.2,0.00573877]
[1739328102132,4.81535597,2615.3,2614.7,3.2078]
[1739328102338,3.14038544,2614.9,2614.7,44.0078]
[1739328102624,3.3667,2614.8,2614.7,44.0078]
[1739328102830,7.4573605,2614.8,2614.7,44.0078]
[1739328104230,7.4573605,2614.8,2614.7,40.8]
[1739328104528,7.4573605,2614.8,2614.5,0.00573877]
[1739328104529,10.6651605,2614.8,2614.5,0.00573877]
[1739328104831,3.14038544,2614.6,2614.5,0.00573877]
[1739328105132,3.20535278,2614.6,2614.5,0.00573877]
[1739328105426,7.36962847,2614.6,2613.7,4.3603]
[1739328105630,3.14038544,2614.2,2613.8,0.5757]
[1739328105827,1.677,2614.1,2613.9,40.8]
[1739328106026,5.68072776,2614.1,2613.9,40.8]
[1739328107431,6.34818544,2614.0,2613.9,40.8]
[1739328107732,9.55352488,2614.0,2613.7,0.00573877]
[1739328107928,0.06495467,2613.9,2613.7,0.00573877]
[1739328108234,4.21291004,2613.8,2613.7,0.00573877]
[1739328108531,7.91499548,2613.8,2613.7,0.00573877]
[1739328109028,7.97995907,2613.8,2613.7,0.00573877]
[1739328109733,7.97996248,2613.8,2613.7,0.00573877]
[1739328111332,7.91499548,2613.8,2613.7,0.00573877]
[1739328111527,7.9799892,2613.8,2613.7,0.00573877]
[1739328113835,7.97998854,2613.8,2613.7,0.00573877]
[1739328116935,7.98000357,2613.8,2613.7,0.00573877]
[1739328120932,7.98000357,2613.8,2613.2,40.8]
[1739328120933,13.98000357,2613.8,2613.2,40.8]
[1739328121140,13.98000357,2613.8,2612.6,0.5946]
[1739328121141,6.34818544,2613.3,2612.6,0.5946]
[1739328121334,3.14038544,2612.9,2612.6,0.5946]
[1739328121534,1.678,2612.8,2612.7,40.8]
[1739328121733,5.72018744,2612.8,2612.7,40.8]
[1739328121933,5.72018744,2612.8,2612.5,0.5946]
[1739328122135,5.72018744,2612.8,2612.5,1.72463877]
[1739328122533,5.72018744,2612.8,2612.6,40.8]
[1739328125341,4.04218744,2612.8,2612.6,40.8]
[1739328125642,0.00573877,2612.9,2612.7,3.2078]
[1739328126948,4.30186684,2612.8,2612.7,3.2078]
[1739328128649,0.00573877,2612.9,2612.7,3.2078]
[1739328130744,0.00573877,2612.9,2612.6,40.8]
[1739328130947,0.00573877,2612.9,2612.7,3.2078]
[1739328134639,4.35936543,2612.8,2612.6,40.8]
[1739328147855,0.6066,2612.7,2612.6,40.8]
[1739328148250,0.6066,2612.7,2612.6,41.26766904]
[1739328149963,0.6066,2612.7,2612.6,41.26799248]
[1739328151455,5.36406255,2612.7,2612.6,41.26799248]
[1739328152066,5.36406255,2612.7,2612.6,41.26809368]
[1739328154266,5.36406255,2612.7,2612.6,41.26809773]
[1739328155666,5.36406255,2612.7,2612.6,40.8]
[1739328159563,5.36406255,2612.7,2612.5,0.00573877]
[1739328159765,3.72928544,2612.6,2612.5,0.00573877]
[1739328159963,3.72928544,2612.6,2612.5,40.80573877]
[1739328160264,8.01630375,2612.6,2612.5,40.80573877]
[1739328168776,4.87591831,2612.6,2612.5,40.80573877]
[1739328170771,8.01630375,2612.6,2612.5,40.80573877]
[1739328171274,8.01630375,2612.6,2612.5,0.00573877]
[1739328176478,4.87591831,2612.6,2612.5,0.00573877]
[1739328177278,4.28701831,2612.6,2612.5,0.00573877]
[1739328183580,4.2845035,2612.6,2612.5,0.00573877]
[1739328187282,4.2845035,2612.6,2612.5,40.80573877]
[1739328187784,5.8330676,2612.6,2612.5,40.80573877]
[1739328195886,5.8330676,2612.6,2612.5,0.00573877]
[1739328197692,11.89805059,2612.6,2611.7,3.24272544]
[1739328197993,1.5485641,2611.8,2611.7,3.24272544]
[1739328198186,1.5485641,2611.8,2611.7,44.51101118]
[1739328198488,5.91828175,2611.8,2611.7,3.24272544]
[1739328198688,7.09218175,2611.8,2611.7,3.2078]
[1739328198891,7.09218175,2611.8,2611.7,44.0078]
[1739328199294,7.09218175,2611.8,2611.7,40.8]
[1739328199795,4.36971765,2611.8,2611.7,41.2677772]
[1739328200088,4.656,2612.3,2611.7,44.41529198]
[1739328200291,4.656,2612.3,2611.8,2.1772772]
[1739328200495,4.15617523,2612.2,2611.9,0.4677772]
[1739328200792,4.15617523,2612.2,2611.8,1.7095]
[1739328200986,4.70807523,2612.2,2611.9,3.67555808]
[1739328201288,4.70807523,2612.2,2611.7,40.8]
[1739328201586,1.1514,2612.1,2611.7,40.8]
[1739328201789,3.2078,2612.0,2611.7,40.8]
[1739328201995,7.63544744,2612.0,2611.7,40.8]
[1739328202590,10.78296222,2612.0,2611.7,40.8]
[1739328202793,3.14751478,2611.8,2611.7,40.8]
[1739328203189,7.39434837,2611.8,2611.7,40.8]
[1739328204396,4.24683359,2611.8,2611.7,40.8]
[1739328205890,4.24683359,2611.8,2611.7,41.3751]
[1739328206087,4.24683359,2611.8,2611.7,41.84231445]
[1739328206294,4.24683359,2611.8,2611.7,41.84231298]
[1739328207688,0.5519,2612.2,2611.7,41.84231298]
[1739328207997,4.17714306,2612.1,2611.8,0.46718058]
[1739328208199,4.17714306,2612.1,2611.7,41.3751]
[1739328208398,4.17714306,2612.1,2611.8,0.46720274]
[1739328208599,5.39454306,2612.1,2611.7,41.3751]
[1739328209098,8.54205784,2612.1,2611.7,41.3751]
[1739328210403,8.54205784,2612.1,2611.7,40.8]
[1739328212195,8.54205784,2612.1,2611.8,1.1294]
[1739328219201,8.54205784,2612.1,2611.7,40.8]
[1739328221302,5.39454306,2612.1,2611.8,1.7675]
[1739328222400,8.54205784,2612.1,2611.8,1.1713]
[1739328226100,8.54205784,2612.1,2611.8,0.591]
[1739328226512,8.54205784,2612.1,2611.7,40.8]
[1739328231412,3.2078,2611.9,2611.7,40.8]
[1739328231620,3.14751478,2611.8,2611.7,40.8]
[1739328231918,7.8859236,2611.8,2611.7,40.8]
[1739328238917,4.14510882,2611.8,2611.7,40.8]
[1739328239523,4.14510882,2611.8,2611.7,41.26793488]
[1739328239720,4.14510882,2611.8,2611.7,43.03533488]
[1739328240116,1.784,2612.1,2611.7,42.5674]
[1739328240317,0.5666,2612.1,2611.8,0.46793235]
[1739328240520,0.5666,2612.1,2611.7,42.5674]
[1739328240722,3.71411478,2612.1,2611.7,42.5674]
[1739328240924,4.12439405,2612.0,2611.7,42.5674]
[1739328241414,4.12439405,2612.0,2611.7,40.8]
[1739328241616,1.1364,2611.9,2611.7,40.8]
[1739328242225,4.62084094,2611.8,2611.7,40.8]
[1739328243314,4.03184094,2611.8,2611.7,41.26796099]
[1739328243520,4.03184094,2611.8,2611.7,43.04356099]
[1739328243726,3.73651478,2612.1,2611.7,43.04356099]
[1739328243727,4.22651136,2612.0,2611.7,43.04356099]
[1739328243927,4.22651136,2612.0,2611.7,42.5756]
[1739328244221,4.93821478,2612.1,2611.7,42.5756]
[1739328244528,4.03005194,2612.0,2611.8,0.46797494]
[1739328244725,4.03005194,2612.0,2611.7,42.5756]
[1739328244928,4.03005194,2612.0,2611.8,0.46797722]
[1739328245124,4.03005194,2612.0,2611.7,42.5756]
[1739328245427,1.676,2612.2,2611.8,0.46797105]
[1739328245624,4.82351478,2612.4,2611.9,0.46797105]
[1739328245927,4.15051192,2612.2,2612.0,0.46797105]
[1739328246118,4.15051192,2612.2,2612.1,1.63307105]
[1739328246318,0.5607,2612.4,2612.1,1.63307105]
[1739328246517,0.5607,2612.4,2612.1,1.1651]
[1739328246726,4.16648449,2612.3,2612.2,0.5697]
[1739328247035,4.16648449,2612.3,2612.2,4.24530118]
[1739328247223,1.676,2612.5,2612.2,1.03750118]
[1739328247526,1.676,2612.5,2612.2,0.5697]
[1739328247924,1.676,2612.5,2612.3,0.46758125]
[1739328248124,1.676,2612.5,2612.4,0.46757128]
[1739328248320,1.676,2612.5,2612.2,3.7775]
[1739328248621,1.676,2612.5,2612.3,0.46735479]
[1739328248927,1.676,2612.5,2612.2,3.7775]
[1739328249126,1.676,2612.5,2612.3,0.46735552]
[1739328249321,2.98473877,2612.9,2612.4,0.46715483]
[1739328249520,2.98473877,2612.9,2612.5,1.57502777]
[1739328249819,0.00573877,2612.9,2612.6,41.3642]
[1739328250524,4.40761355,2612.8,2612.6,41.3642]
[1739328250921,4.40761355,2612.8,2612.6,40.8]
[1739328251824,4.40761355,2612.8,2612.5,0.5558]
[1739328252021,4.40761355,2612.8,2612.2,3.2078]
[1739328252223,4.40761355,2612.8,2612.3,40.8]
[1739328254226,4.40761355,2612.8,2612.2,3.2078]
[1739328254227,3.14751478,2612.7,2612.1,0.6084]
[1739328254430,3.14751478,2612.4,2611.9,3.7711]
[1739328254622,1.7486,2612.3,2611.9,3.2078]
[1739328254823,5.98309872,2612.3,2611.9,44.0078]
[1739328260131,3.14751478,2612.1,2611.9,44.0078]
[1739328260634,3.98340581,2612.0,2611.9,44.0078]
[1739328262131,3.98340581,2612.0,2611.9,40.8]
[1739328262835,3.98340581,2612.0,2611.5,0.00573877]
[1739328263037,3.14751478,2611.7,2611.5,0.00573877]
[1739328263232,2.8559,2611.9,2611.6,40.8]
[1739328263634,4.27859229,2611.8,2611.6,40.8]
[1739328266741,4.88269229,2611.8,2611.6,40.8]
[1739328276642,4.88269229,2611.8,2611.6,42.0026]
[1739328277738,4.27859229,2611.8,2611.6,45.2104]
[1739328277947,4.27859229,2611.8,2611.7,0.5622]
[1739328278647,4.27859229,2611.8,2611.7,41.3622]
[1739328284255,4.27859229,2611.8,2611.7,41.83013628]
[1739328284554,4.27859229,2611.8,2611.7,41.3622]
[1739328285144,4.27859229,2611.8,2611.7,41.83013189]
[1739328285549,4.27859229,2611.8,2611.7,41.83019067]
[1739328285745,2.2296,2612.1,2611.7,41.83019067]
[1739328285950,0.5546,2612.1,2611.8,0.46799067]
[1739328286154,4.25546181,2611.9,2611.7,0.5622]
[1739328286456,0.5546,2612.1,2611.8,0.4679891]
[1739328286653,0.5546,2612.1,2611.8,40.8]
[1739328286854,3.98629538,2612.0,2611.8,40.8]
[1739328287056,3.98629538,2612.0,2611.9,0.46797848]
[1739328287359,3.98629538,2612.0,2611.9,0.4680015]
[1739328289354,3.98629538,2612.0,2611.8,40.8]
[1739328289555,3.98629538,2612.0,2611.9,0.46796639]
[1739328289755,3.98629538,2612.0,2611.8,40.8]
[1739328290054,3.98629538,2612.0,2611.9,0.46796748]
[1739328292058,3.98629538,2612.0,2611.9,1.05306748]
[1739328292958,3.98629538,2612.0,2611.9,0.5851]
[1739328293163,4.56449538,2612.0,2611.8,40.8]
[1739328296368,3.98629538,2612.0,2611.8,40.8]
[1739328296559,3.98629538,2612.0,2611.9,1.05786742]
[1739328296755,3.98629538,2612.0,2611.9,0.59]
[1739328297060,3.98629538,2612.0,2611.9,1.05786516]
[1739328297259,4.8828,2612.3,2611.9,0.59]
[1739328297660,4.31497271,2612.2,2611.9,0.59]
[1739328297971,4.91417271,2612.2,2611.9,0.59]
[1739328301167,0.5674,2612.1,2611.9,0.59]
[1739328301368,1.133,2612.1,2611.9,0.59]
[1739328302357,4.8828,2612.3,2611.9,0.59]
[1739328302557,3.2078,2612.3,2612.0,0.46791943]
[1739328302761,3.2078,2612.3,2612.1,1.1647]
[1739328302976,3.2078,2612.3,2611.9,0.59]
[1739328303171,0.5645,2612.2,2611.9,0.59]
[1739328303670,1.1493,2612.1,2611.8,40.8]
[1739328303974,5.54962169,2612.1,2611.9,0.46794759]
[1739328304272,5.54962169,2612.1,2611.8,40.8]
[1739328304458,5.54962169,2612.1,2611.9,0.4679922]
[1739328304662,5.54962169,2612.1,2611.8,40.8]
[1739328304870,5.54962169,2612.1,2611.9,0.46799115]
[1739328305071,5.54962169,2612.1,2611.8,40.8]
[1739328305269,5.54962169,2612.1,2611.9,0.46799243]
[1739328305570,5.54962169,2612.1,2611.8,40.8]
[1739328305763,5.54962169,2612.1,2611.9,0.46803936]
[1739328305959,5.54962169,2612.1,2611.8,40.8]
[1739328306274,0.5645,2612.2,2611.9,1.04373903]
[1739328306473,0.5645,2612.2,2612.0,0.46803903]
[1739328306668,0.5645,2612.2,2612.1,0.46803903]
[1739328307173,1.1534,2612.5,2612.1,0.46803903]
[1739328307364,1.1534,2612.5,2612.2,1.04373903]
[1739328307566,1.1534,2612.5,2612.3,0.46803903]
[1739328307869,1.1534,2612.5,2612.2,0.5757]
[1739328308076,1.1534,2612.5,2612.3,0.46791783]
[1739328308274,1.1534,2612.5,2612.2,0.5757]
[1739328308572,0.5621,2612.5,2612.3,0.46773382]
[1739328308767,0.5621,2612.5,2612.2,0.5757]
[1739328309070,0.5621,2612.5,2612.3,0.46772784]
[1739328309370,0.5621,2612.5,2612.2,0.5757]
[1739328309571,0.5621,2612.5,2612.3,0.46758305]
[1739328309770,0.5621,2612.5,2612.2,0.5757]
[1739328309971,0.5621,2612.5,2612.3,0.46758193]
[1739328310171,0.5621,2612.5,2612.2,0.5757]
[1739328310372,0.5621,2612.5,2612.3,0.46757497]
[1739328310670,0.5621,2612.5,2612.2,0.5757]
[1739328310976,0.5532,2612.4,2612.2,0.5757]
[1739328316579,0.5532,2612.4,2612.1,3.2078]
[1739328316874,0.5528,2612.3,2612.2,0.46725915]
[1739328317669,0.5528,2612.3,2612.2,0.46722614]
[1739328319873,0.5528,2612.3,2612.2,0.46719086]
[1739328321878,0.5528,2612.3,2612.2,0.46718045]
[1739328322283,0.5621,2612.5,2612.2,0.46718045]
[1739328322476,1.1582,2612.7,2612.3,3.61471238]
[1739328322776,1.1582,2612.7,2612.4,1.0512976]
[1739328322981,1.1582,2612.7,2612.5,40.8]
[1739328323983,4.13509192,2612.6,2612.5,40.8]
[1739328324875,1.1582,2612.7,2612.5,40.8]
[1739328326580,1.1582,2612.7,2612.5,41.4032]
[1739328326982,1.1582,2612.7,2612.5,40.8]
[1739328327385,4.28705688,2612.6,2612.0,3.2078]
[1739328327685,4.28705688,2612.6,2612.1,0.46728291]
[1739328327881,4.28705688,2612.6,2612.2,40.8]
[1739328328081,7.43457166,2612.6,2612.2,40.8]
[1739328328285,1.674,2612.5,2612.2,40.8]
[1739328328485,0.6077,2612.4,2612.2,40.8]
[1739328328687,5.52604808,2612.4,2612.2,40.8]
[1739328330986,3.14751478,2612.3,2611.7,3.2078]
[1739328331185,0.5926,2612.2,2611.8,0.46746099]
[1739328331488,4.84525482,2612.2,2611.9,40.8]
[1739328339793,6.0845,2612.4,2611.9,40.8]
[1739328340089,4.19793416,2612.3,2611.9,40.8]
[1739328341496,0.596,2612.4,2612.0,6.82240633]
[1739328341802,1.673,2612.7,2612.3,3.2078]
[1739328341989,1.673,2612.7,2612.4,1.7473]
[1739328342900,0.5696,2612.8,2612.4,1.7473]
[1739328343109,0.5696,2612.8,2612.5,0.46700794]
[1739328343292,0.5696,2612.8,2612.4,1.7473]
[1739328344897,0.5696,2612.8,2612.5,0.46689417]
[1739328345096,0.5696,2612.8,2612.4,1.7473]
[1739328345304,0.5696,2612.8,2612.5,0.46684319]
[1739328345499,0.5696,2612.8,2612.4,1.7473]
[1739328348802,3.14751478,2612.6,2612.3,3.2078]
[1739328349012,1.1804,2612.5,2612.3,3.2078]
[1739328349306,7.02473197,2612.5,2612.3,3.2078]
[1739328349605,0.5565,2612.4,2612.3,3.2078]
[1739328350002,4.86703487,2612.4,2612.3,3.2078]
[1739328350398,0.5565,2612.4,2612.3,3.2078]
[1739328354508,1.1804,2612.5,2612.3,3.2078]
[1739328354905,4.13399648,2612.4,2612.3,3.2078]
[1739328356310,4.13399648,2612.4,2612.1,0.6075]
[1739328356606,3.14751478,2612.3,2612.0,3.2078]
[1739328356903,3.14751478,2612.3,2611.9,40.8]
[1739328357103,4.08534266,2612.2,2611.9,40.8]
[1739328357309,3.14751478,2612.0,2611.9,40.8]
[1739328357907,8.3427716,2612.0,2611.9,40.8]